[Event "Titled Tuesday Blitz August 09 Early 2022"]
[White "Yurovskykh, Oleksandr"]
[Black "Wieczorek, Oskar"]
[WhiteFideId "14134020"]
[BlackFideId "1133950"]
[WhiteElo "2292"]
[BlackElo "2302"]
[Result "0-1"]
[Round "10"]
[TimeControl "180+1"]
[Date "2022.08.09"]
[WhiteClock "0:00:01"]
[BlackClock "0:00:14"]

1. d4 {[%clk 0:03:00]}  c6 {[%clk 0:02:57]} 2. Bf4 {[%clk 0:03:00]}  Qa5+ {[%clk 0:02:54]} 3. Nd2 {[%clk 0:02:56]}  Qd8 {[%clk 0:02:55]} 4. Ngf3 {[%clk 0:02:52]}  Qa5 {[%clk 0:02:55]} 5. e3 {[%clk 0:02:50]}  Qd8 {[%clk 0:02:55]} 6. Bd3 {[%clk 0:02:50]}  d6 {[%clk 0:02:56]} 7. O-O {[%clk 0:02:50]}  Nd7 {[%clk 0:02:56]} 8. h3 {[%clk 0:02:51]}  g6 {[%clk 0:02:56]} 9. Bh2 {[%clk 0:02:51]}  Bg7 {[%clk 0:02:56]} 10. c3 {[%clk 0:02:52]}  Qa5 {[%clk 0:02:55]} 11. e4 {[%clk 0:02:49]}  Qd8 {[%clk 0:02:51]} 12. Re1 {[%clk 0:02:46]}  Nb8 {[%clk 0:02:29]} 13. c4 {[%clk 0:02:28]}  Nf6 {[%clk 0:02:21]} 14. Qc2 {[%clk 0:02:21]}  Nfd7 {[%clk 0:02:15]} 15. e5 {[%clk 0:02:20]}  dxe5 {[%clk 0:02:13]} 16. Nxe5 {[%clk 0:02:06]}  Nxe5 {[%clk 0:02:12]} 17. dxe5 {[%clk 0:02:07]}  Na6 {[%clk 0:02:05]} 18. Qc3 {[%clk 0:01:54]}  Nc5 {[%clk 0:01:57]} 19. Bc2 {[%clk 0:01:52]}  O-O {[%clk 0:01:56]} 20. b4 {[%clk 0:01:51]}  Ne6 {[%clk 0:01:57]} 21. Rad1 {[%clk 0:01:50]}  Qc7 {[%clk 0:01:53]} 22. Ne4 {[%clk 0:01:47]}  a5 {[%clk 0:01:50]} 23. a3 {[%clk 0:01:45]}  axb4 {[%clk 0:01:50]} 24. axb4 {[%clk 0:01:46]}  c5 {[%clk 0:01:26]} 25. bxc5 {[%clk 0:01:25]}  Qc6 {[%clk 0:01:02]} 26. Rd5 {[%clk 0:01:20]}  Nc7 {[%clk 0:00:57]} 27. Rd2 {[%clk 0:01:13]}  Bf5 {[%clk 0:00:53]} 28. g4 {[%clk 0:01:04]}  Bxe4 {[%clk 0:00:47]} 29. Bxe4 {[%clk 0:01:05]}  Qxc5 {[%clk 0:00:48]} 30. Bxb7 {[%clk 0:01:04]}  Ra3 {[%clk 0:00:49]} 31. Qd4 {[%clk 0:00:57]}  Qb4 {[%clk 0:00:49]} 32. Bg2 {[%clk 0:00:54]}  Ne6 {[%clk 0:00:49]} 33. Qb2 {[%clk 0:00:44]}  Rb3 {[%clk 0:00:44]} 34. Qa2 {[%clk 0:00:36]}  Bh6 {[%clk 0:00:42]} 35. Rde2 {[%clk 0:00:33]}  Bf4 {[%clk 0:00:40]} 36. Qa6 {[%clk 0:00:15]}  Rb2 {[%clk 0:00:21]} 37. Qb5 {[%clk 0:00:08]}  Qxb5 {[%clk 0:00:14]} 38. cxb5 {[%clk 0:00:09]}  Rxb5 {[%clk 0:00:15]} 39. Rd1 {[%clk 0:00:08]}  Rc8 {[%clk 0:00:14]} 40. Bd5 {[%clk 0:00:07]}  Bxh2+ {[%clk 0:00:14]} 41. Kxh2 {[%clk 0:00:06]}  Nf4 {[%clk 0:00:14]} 42. Red2 {[%clk 0:00:05]}  Kg7 {[%clk 0:00:14]} 43. Bf3 {[%clk 0:00:03]}  Rc3 {[%clk 0:00:14]} 44. Bg2 {[%clk 0:00:02]}  Rxe5 {[%clk 0:00:14]} 45. Rd4 {[%clk 0:00:01]}  g5 {[%clk 0:00:14]} 0-1


[Site "https://www.chess.com"]

[Event "Titled Tuesday Blitz August 09 Early 2022"]
[White "Zaichenko, Daria"]
[Black "Matveeva, Olga"]
[WhiteFideId "4197453"]
[BlackFideId "24107018"]
[WhiteElo "2039"]
[BlackElo "2052"]
[Result "1-0"]
[Round "10"]
[TimeControl "180+1"]
[Date "2022.08.09"]
[WhiteClock "0:01:59"]
[BlackClock "0:01:05"]

1. e4 {[%clk 0:02:54]}  e6 {[%clk 0:03:00]} 2. d4 {[%clk 0:02:51]}  d5 {[%clk 0:03:01]} 3. Nd2 {[%clk 0:02:51]}  c5 {[%clk 0:03:00]} 4. c3 {[%clk 0:02:50]}  cxd4 {[%clk 0:02:58]} 5. cxd4 {[%clk 0:02:50]}  dxe4 {[%clk 0:02:58]} 6. Nxe4 {[%clk 0:02:51]}  Nc6 {[%clk 0:02:58]} 7. Nf3 {[%clk 0:02:47]}  Bb4+ {[%clk 0:02:57]} 8. Bd2 {[%clk 0:02:46]}  Bxd2+ {[%clk 0:02:56]} 9. Qxd2 {[%clk 0:02:47]}  Nf6 {[%clk 0:02:55]} 10. Bd3 {[%clk 0:02:43]}  O-O {[%clk 0:02:50]} 11. O-O {[%clk 0:02:43]}  Bd7 {[%clk 0:02:26]} 12. Rad1 {[%clk 0:02:32]}  Nd5 {[%clk 0:02:18]} 13. Nc5 {[%clk 0:02:25]}  b6 {[%clk 0:02:11]} 14. Nxd7 {[%clk 0:02:25]}  Qxd7 {[%clk 0:02:12]} 15. Ne5 {[%clk 0:02:25]}  Qd6 {[%clk 0:02:02]} 16. f4 {[%clk 0:02:19]}  Nxd4 {[%clk 0:01:53]} 17. Bxh7+ {[%clk 0:02:17]}  Kxh7 {[%clk 0:01:54]} 18. Qxd4 {[%clk 0:02:18]}  Rac8 {[%clk 0:01:46]} 19. f5 {[%clk 0:02:14]}  Qc5 {[%clk 0:01:46]} 20. Qxc5 {[%clk 0:02:13]}  bxc5 {[%clk 0:01:45]} 21. Rf3 {[%clk 0:02:08]}  Rfd8 {[%clk 0:01:38]} 22. Nxf7 {[%clk 0:02:04]}  Rd7 {[%clk 0:01:24]} 23. Rh3+ {[%clk 0:02:00]}  Kg8 {[%clk 0:01:23]} 24. fxe6 {[%clk 0:02:01]}  Re7 {[%clk 0:01:05]} 25. Rh8# {[%clk 0:01:59]} 1-0


[Site "https://www.chess.com"]

[Event "Titled Tuesday Blitz August 09 Early 2022"]
[White "Aldokhin, Ivan"]
[Black "Jaskolka, Tomasz"]
[WhiteFideId "24115720"]
[BlackFideId "1170791"]
[WhiteElo "2246"]
[BlackElo "2073"]
[Result "1-0"]
[Round "11"]
[TimeControl "180+1"]
[Date "2022.08.09"]
[WhiteClock "0:00:16"]
[BlackClock "0:00:16"]

1. e4 {[%clk 0:03:00]}  c5 {[%clk 0:02:59]} 2. Nf3 {[%clk 0:03:01]}  e6 {[%clk 0:02:59]} 3. d4 {[%clk 0:03:01]}  cxd4 {[%clk 0:03:00]} 4. Nxd4 {[%clk 0:03:02]}  Nc6 {[%clk 0:03:01]} 5. Nc3 {[%clk 0:03:02]}  Qc7 {[%clk 0:03:01]} 6. Nxc6 {[%clk 0:03:01]}  Qxc6 {[%clk 0:03:01]} 7. Bd3 {[%clk 0:03:02]}  a6 {[%clk 0:02:53]} 8. O-O {[%clk 0:03:02]}  Nf6 {[%clk 0:02:53]} 9. e5 {[%clk 0:02:57]}  Nd5 {[%clk 0:02:51]} 10. Bd2 {[%clk 0:02:53]}  Nxc3 {[%clk 0:02:50]} 11. Bxc3 {[%clk 0:02:53]}  d6 {[%clk 0:02:36]} 12. exd6 {[%clk 0:02:51]}  Bxd6 {[%clk 0:02:35]} 13. Qg4 {[%clk 0:02:47]}  Bd7 {[%clk 0:02:20]} 14. Rad1 {[%clk 0:02:07]}  O-O-O {[%clk 0:02:16]} 15. Bxg7 {[%clk 0:01:42]}  h5 {[%clk 0:02:09]} 16. Qe2 {[%clk 0:01:20]}  Rhg8 {[%clk 0:02:03]} 17. Be4 {[%clk 0:01:21]}  Qc7 {[%clk 0:01:40]} 18. Rxd6 {[%clk 0:01:11]}  Qxd6 {[%clk 0:01:34]} 19. Bf6 {[%clk 0:01:07]}  Rde8 {[%clk 0:01:28]} 20. Rd1 {[%clk 0:01:06]}  Qf4 {[%clk 0:01:20]} 21. Be5 {[%clk 0:00:45]}  Qg4 {[%clk 0:01:16]} 22. Bf3 {[%clk 0:00:28]}  Qa4 {[%clk 0:01:12]} 23. Rd4 {[%clk 0:00:26]}  Qxa2 {[%clk 0:00:51]} 24. Bxb7+ {[%clk 0:00:20]}  Kd8 {[%clk 0:00:17]} 25. Rxd7+ {[%clk 0:00:18]}  Kxd7 {[%clk 0:00:17]} 26. Qd3+ {[%clk 0:00:18]}  Qd5 {[%clk 0:00:13]} 27. Bxd5 {[%clk 0:00:17]}  exd5 {[%clk 0:00:14]} 28. Qxd5+ {[%clk 0:00:16]}  Kc8 {[%clk 0:00:15]} 29. Qc6+ {[%clk 0:00:16]}  Kd8 {[%clk 0:00:16]} 30. Qc7# {[%clk 0:00:16]} 1-0


[Site "https://www.chess.com"]

[Event "Titled Tuesday Blitz August 09 Early 2022"]
[White "Altman, Joshua"]
[Black "Azarov, Sergei"]
[WhiteFideId "426210"]
[BlackFideId "13501470"]
[WhiteElo "1945"]
[BlackElo "2494"]
[Result "0-1"]
[Round "11"]
[TimeControl "180+1"]
[Date "2022.08.09"]
[WhiteClock "0:00:01"]
[BlackClock "0:00:14"]

1. d4 {[%clk 0:03:00]}  f5 {[%clk 0:02:58]} 2. Nc3 {[%clk 0:03:00]}  Nf6 {[%clk 0:02:57]} 3. Bg5 {[%clk 0:03:00]}  d5 {[%clk 0:02:57]} 4. Bxf6 {[%clk 0:03:01]}  exf6 {[%clk 0:02:58]} 5. e3 {[%clk 0:03:01]}  Be6 {[%clk 0:02:58]} 6. Bd3 {[%clk 0:03:01]}  Qd7 {[%clk 0:02:58]} 7. Nge2 {[%clk 0:03:01]}  Nc6 {[%clk 0:02:51]} 8. a3 {[%clk 0:03:01]}  g6 {[%clk 0:02:48]} 9. Na4 {[%clk 0:02:57]}  Bf7 {[%clk 0:02:42]} 10. b4 {[%clk 0:02:48]}  b6 {[%clk 0:02:18]} 11. O-O {[%clk 0:02:41]}  Be7 {[%clk 0:02:07]} 12. Nb2 {[%clk 0:02:33]}  Nd8 {[%clk 0:01:48]} 13. c4 {[%clk 0:02:31]}  c6 {[%clk 0:01:49]} 14. Rc1 {[%clk 0:02:19]}  O-O {[%clk 0:01:48]} 15. cxd5 {[%clk 0:02:13]}  cxd5 {[%clk 0:01:46]} 16. Qa4 {[%clk 0:01:53]}  Qd6 {[%clk 0:01:36]} 17. Rc2 {[%clk 0:01:46]}  Be8 {[%clk 0:01:15]} 18. Bb5 {[%clk 0:01:41]}  Bf7 {[%clk 0:01:00]} 19. Rfc1 {[%clk 0:01:31]}  a5 {[%clk 0:01:00]} 20. Nd3 {[%clk 0:01:20]}  Kg7 {[%clk 0:00:57]} 21. Rc7 {[%clk 0:01:11]}  Be6 {[%clk 0:00:45]} 22. Nef4 {[%clk 0:00:54]}  g5 {[%clk 0:00:35]} 23. Nxe6+ {[%clk 0:00:52]}  Qxe6 {[%clk 0:00:35]} 24. Bd7 {[%clk 0:00:41]}  Qe4 {[%clk 0:00:30]} 25. Bxf5 {[%clk 0:00:38]}  Qxf5 {[%clk 0:00:27]} 26. Rxe7+ {[%clk 0:00:37]}  Rf7 {[%clk 0:00:26]} 27. Qe8 {[%clk 0:00:16]}  Ra7 {[%clk 0:00:19]} 28. Rxf7+ {[%clk 0:00:10]}  Nxf7 {[%clk 0:00:20]} 29. Ne1 {[%clk 0:00:05]}  Qd7 {[%clk 0:00:15]} 30. Qb8 {[%clk 0:00:03]}  Nd6 {[%clk 0:00:14]} 31. Nf3 {[%clk 0:00:01]}  Nc4 {[%clk 0:00:14]} 0-1


[Site "https://www.chess.com"]

[Event "Titled Tuesday Blitz August 09 Early 2022"]
[White "Andreikin, Dmitry"]
[Black "Nakamura, Hikaru"]
[WhiteFideId "4158814"]
[BlackFideId "2016192"]
[WhiteElo "2736"]
[BlackElo "2850"]
[Result "1/2-1/2"]
[Round "11"]
[TimeControl "180+1"]
[Date "2022.08.09"]
[WhiteClock "0:00:11"]
[BlackClock "0:00:09"]

1. d4 {[%clk 0:03:00]}  Nf6 {[%clk 0:02:58]} 2. c4 {[%clk 0:03:01]}  e6 {[%clk 0:02:58]} 3. Nf3 {[%clk 0:03:01]}  d5 {[%clk 0:02:58]} 4. Nc3 {[%clk 0:03:01]}  Be7 {[%clk 0:02:58]} 5. Bf4 {[%clk 0:03:01]}  O-O {[%clk 0:02:58]} 6. e3 {[%clk 0:03:02]}  Nbd7 {[%clk 0:02:59]} 7. Be2 {[%clk 0:03:01]}  dxc4 {[%clk 0:02:57]} 8. O-O {[%clk 0:03:01]}  Nb6 {[%clk 0:02:57]} 9. Ne5 {[%clk 0:02:59]}  Nfd5 {[%clk 0:02:53]} 10. Bg3 {[%clk 0:02:55]}  c5 {[%clk 0:02:53]} 11. dxc5 {[%clk 0:02:52]}  Nxc3 {[%clk 0:02:49]} 12. bxc3 {[%clk 0:02:53]}  Bxc5 {[%clk 0:02:48]} 13. a4 {[%clk 0:02:51]}  a5 {[%clk 0:02:45]} 14. Qc2 {[%clk 0:02:27]}  Qe8 {[%clk 0:02:02]} 15. Rfb1 {[%clk 0:02:13]}  f6 {[%clk 0:01:46]} 16. Nxc4 {[%clk 0:02:02]}  Nxc4 {[%clk 0:01:46]} 17. Bxc4 {[%clk 0:02:03]}  b6 {[%clk 0:01:46]} 18. Rd1 {[%clk 0:01:32]}  Qe7 {[%clk 0:01:40]} 19. Qe4 {[%clk 0:01:22]}  Ra7 {[%clk 0:01:39]} 20. Qc6 {[%clk 0:01:22]}  Re8 {[%clk 0:01:21]} 21. Bd6 {[%clk 0:00:50]}  Bxd6 {[%clk 0:00:55]} 22. Qxd6 {[%clk 0:00:51]}  Qxd6 {[%clk 0:00:55]} 23. Rxd6 {[%clk 0:00:51]}  Bd7 {[%clk 0:00:55]} 24. Rxb6 {[%clk 0:00:44]}  Rc7 {[%clk 0:00:55]} 25. Bb5 {[%clk 0:00:38]}  Bxb5 {[%clk 0:00:55]} 26. Rxb5 {[%clk 0:00:38]}  Ra8 {[%clk 0:00:44]} 27. Ra3 {[%clk 0:00:35]}  e5 {[%clk 0:00:43]} 28. g3 {[%clk 0:00:33]}  Raa7 {[%clk 0:00:40]} 29. Kg2 {[%clk 0:00:33]}  Rc4 {[%clk 0:00:40]} 30. h4 {[%clk 0:00:29]}  h5 {[%clk 0:00:40]} 31. Kf3 {[%clk 0:00:22]}  Rac7 {[%clk 0:00:36]} 32. Rxa5 {[%clk 0:00:20]}  Kf7 {[%clk 0:00:36]} 33. Rb5 {[%clk 0:00:19]}  Rxc3 {[%clk 0:00:36]} 34. Rxc3 {[%clk 0:00:18]}  Rxc3 {[%clk 0:00:37]} 35. a5 {[%clk 0:00:15]}  Ke6 {[%clk 0:00:30]} 36. Rb7 {[%clk 0:00:13]}  g6 {[%clk 0:00:30]} 37. a6 {[%clk 0:00:13]}  Ra3 {[%clk 0:00:30]} 38. a7 {[%clk 0:00:14]}  Kf5 {[%clk 0:00:26]} 39. Rh7 {[%clk 0:00:08]}  e4+ {[%clk 0:00:21]} 40. Kg2 {[%clk 0:00:07]}  Ra1 {[%clk 0:00:18]} 41. Re7 {[%clk 0:00:07]}  Ra2 {[%clk 0:00:18]} 42. Kf1 {[%clk 0:00:07]}  g5 {[%clk 0:00:18]} 43. hxg5 {[%clk 0:00:05]}  fxg5 {[%clk 0:00:19]} 44. Kg2 {[%clk 0:00:04]}  Ra1 {[%clk 0:00:17]} 45. Rf7+ {[%clk 0:00:04]}  Kg6 {[%clk 0:00:17]} 46. Rb7 {[%clk 0:00:04]}  Kf5 {[%clk 0:00:14]} 47. Rc7 {[%clk 0:00:04]}  Ra2 {[%clk 0:00:14]} 48. Kf1 {[%clk 0:00:03]}  Ra1+ {[%clk 0:00:11]} 49. Kg2 {[%clk 0:00:04]}  Ra2 {[%clk 0:00:11]} 50. Rd7 {[%clk 0:00:05]}  Ra1 {[%clk 0:00:11]} 51. f4 {[%clk 0:00:04]}  Ra2+ {[%clk 0:00:06]} 52. Kf1 {[%clk 0:00:04]}  gxf4 {[%clk 0:00:06]} 53. gxf4 {[%clk 0:00:04]}  Kg4 {[%clk 0:00:06]} 54. Ke1 {[%clk 0:00:02]}  h4 {[%clk 0:00:05]} 55. Rg7+ {[%clk 0:00:02]}  Kf3 {[%clk 0:00:05]} 56. f5 {[%clk 0:00:03]}  Kxe3 {[%clk 0:00:05]} 57. Kd1 {[%clk 0:00:03]}  h3 {[%clk 0:00:06]} 58. f6 {[%clk 0:00:03]}  h2 {[%clk 0:00:06]} 59. Rh7 {[%clk 0:00:03]}  Rxa7 {[%clk 0:00:07]} 60. Rh3+ {[%clk 0:00:03]}  Kd4 {[%clk 0:00:07]} 61. f7 {[%clk 0:00:03]}  Rxf7 {[%clk 0:00:04]} 62. Rxh2 {[%clk 0:00:03]}  Ra7 {[%clk 0:00:04]} 63. Rh3 {[%clk 0:00:03]}  Ra2 {[%clk 0:00:04]} 64. Ke1 {[%clk 0:00:03]}  Rb2 {[%clk 0:00:05]} 65. Rg3 {[%clk 0:00:04]}  Rc2 {[%clk 0:00:05]} 66. Rh3 {[%clk 0:00:04]}  Rg2 {[%clk 0:00:06]} 67. Ra3 {[%clk 0:00:04]}  Rb2 {[%clk 0:00:06]} 68. Rh3 {[%clk 0:00:04]}  Ke5 {[%clk 0:00:06]} 69. Rg3 {[%clk 0:00:04]}  Kf4 {[%clk 0:00:06]} 70. Ra3 {[%clk 0:00:05]}  Rc2 {[%clk 0:00:07]} 71. Rb3 {[%clk 0:00:05]}  Rg2 {[%clk 0:00:07]} 72. Ra3 {[%clk 0:00:05]}  Rh2 {[%clk 0:00:07]} 73. Rb3 {[%clk 0:00:05]}  Ra2 {[%clk 0:00:07]} 74. Rc3 {[%clk 0:00:05]}  e3 {[%clk 0:00:07]} 75. Rc8 {[%clk 0:00:05]}  Ke4 {[%clk 0:00:08]} 76. Re8+ {[%clk 0:00:05]}  Kd3 {[%clk 0:00:08]} 77. Rd8+ {[%clk 0:00:06]}  Ke4 {[%clk 0:00:09]} 78. Re8+ {[%clk 0:00:06]}  Kf4 {[%clk 0:00:09]} 79. Rf8+ {[%clk 0:00:07]}  Ke5 {[%clk 0:00:10]} 80. Re8+ {[%clk 0:00:07]}  Kd6 {[%clk 0:00:10]} 81. Rxe3 {[%clk 0:00:07]}  Ra1+ {[%clk 0:00:10]} 82. Kf2 {[%clk 0:00:07]}  Ra7 {[%clk 0:00:11]} 83. Rd3+ {[%clk 0:00:07]}  Kc5 {[%clk 0:00:11]} 84. Re3 {[%clk 0:00:08]}  Rh7 {[%clk 0:00:11]} 85. Rg3 {[%clk 0:00:08]}  Rh8 {[%clk 0:00:11]} 86. Rf3 {[%clk 0:00:08]}  Kd4 {[%clk 0:00:12]} 87. Rf4+ {[%clk 0:00:09]}  Kd3 {[%clk 0:00:12]} 88. Rf7 {[%clk 0:00:08]}  Rd8 {[%clk 0:00:11]} 89. Kf3 {[%clk 0:00:08]}  Kd2 {[%clk 0:00:11]} 90. Kg4 {[%clk 0:00:08]}  Rd4+ {[%clk 0:00:12]} 91. Rf4 {[%clk 0:00:08]}  Rd8 {[%clk 0:00:12]} 92. Rf6 {[%clk 0:00:08]}  Ke3 {[%clk 0:00:13]} 93. Re6+ {[%clk 0:00:08]}  Kf2 {[%clk 0:00:13]} 94. Rf6+ {[%clk 0:00:09]}  Kg2 {[%clk 0:00:14]} 95. Ra6 {[%clk 0:00:09]}  Rg8+ {[%clk 0:00:14]} 96. Kf4 {[%clk 0:00:10]}  Rf8+ {[%clk 0:00:15]} 97. Ke5 {[%clk 0:00:10]}  Rb8 {[%clk 0:00:15]} 98. Ra3 {[%clk 0:00:10]}  Kf2 {[%clk 0:00:16]} 99. Rc3 {[%clk 0:00:10]}  Re8+ {[%clk 0:00:16]} 100. Kd6 {[%clk 0:00:10]}  Rh8 {[%clk 0:00:17]} 101. Ke7 {[%clk 0:00:10]}  Ke2 {[%clk 0:00:17]} 102. Ke6 {[%clk 0:00:10]}  Kd2 {[%clk 0:00:17]} 103. Rg3 {[%clk 0:00:10]}  Rh6+ {[%clk 0:00:17]} 104. Kf5 {[%clk 0:00:10]}  Ra6 {[%clk 0:00:18]} 105. Rg6 {[%clk 0:00:10]}  Ra5+ {[%clk 0:00:18]} 106. Kf6 {[%clk 0:00:11]}  Ra8 {[%clk 0:00:19]} 107. Kg5 {[%clk 0:00:11]}  Ke3 {[%clk 0:00:19]} 108. Re6+ {[%clk 0:00:11]}  Kd4 {[%clk 0:00:19]} 109. Re1 {[%clk 0:00:11]}  Rg8+ {[%clk 0:00:18]} 110. Kf6 {[%clk 0:00:11]}  Rb8 {[%clk 0:00:19]} 111. Kf5 {[%clk 0:00:11]}  Kd3 {[%clk 0:00:19]} 112. Kf6 {[%clk 0:00:11]}  Kd2 {[%clk 0:00:19]} 113. Re7 {[%clk 0:00:11]}  Ra8 {[%clk 0:00:19]} 114. Rd7+ {[%clk 0:00:12]}  Ke3 {[%clk 0:00:19]} 115. Rb7 {[%clk 0:00:12]}  Rf8+ {[%clk 0:00:18]} 116. Rf7 {[%clk 0:00:12]}  Ra8 {[%clk 0:00:19]} 117. Re7+ {[%clk 0:00:12]}  Kf4 {[%clk 0:00:19]} 118. Re6 {[%clk 0:00:13]}  Ra7 {[%clk 0:00:19]} 119. Re7 {[%clk 0:00:13]}  Ra1 {[%clk 0:00:19]} 120. Rb7 {[%clk 0:00:13]}  Ra6+ {[%clk 0:00:18]} 121. Ke7 {[%clk 0:00:13]}  Ra4 {[%clk 0:00:19]} 122. Rb5 {[%clk 0:00:13]}  Re4+ {[%clk 0:00:05]} 123. Kd6 {[%clk 0:00:13]}  Re1 {[%clk 0:00:05]} 124. Rc5 {[%clk 0:00:13]}  Rd1+ {[%clk 0:00:05]} 125. Rd5 {[%clk 0:00:13]}  Rh1 {[%clk 0:00:06]} 126. Rd4+ {[%clk 0:00:13]}  Ke3 {[%clk 0:00:06]} 127. Rd5 {[%clk 0:00:13]}  Rh6+ {[%clk 0:00:07]} 128. Ke5 {[%clk 0:00:13]}  Rh8 {[%clk 0:00:08]} 129. Rd6 {[%clk 0:00:13]}  Rh5+ {[%clk 0:00:08]} 130. Ke6 {[%clk 0:00:13]}  Ke4 {[%clk 0:00:09]} 131. Rd1 {[%clk 0:00:11]} 1/2-1/2


[Site "https://www.chess.com"]

[Event "Titled Tuesday Blitz August 09 Early 2022"]
[White "Atakhan, Abtin"]
[Black "Shohat, Yotam"]
[WhiteFideId "22502203"]
[BlackFideId "2813955"]
[WhiteElo "2087"]
[BlackElo "2119"]
[Result "1-0"]
[Round "11"]
[TimeControl "180+1"]
[Date "2022.08.09"]
[WhiteClock "0:00:24"]
[BlackClock "0:00:01"]

1. d4 {[%clk 0:03:00]}  Nf6 {[%clk 0:02:59]} 2. c4 {[%clk 0:02:59]}  g6 {[%clk 0:02:50]} 3. Nc3 {[%clk 0:02:59]}  Bg7 {[%clk 0:02:43]} 4. e4 {[%clk 0:02:58]}  O-O {[%clk 0:02:39]} 5. Be2 {[%clk 0:02:58]}  d6 {[%clk 0:02:30]} 6. Nf3 {[%clk 0:02:50]}  Na6 {[%clk 0:02:30]} 7. O-O {[%clk 0:02:47]}  e5 {[%clk 0:02:29]} 8. Be3 {[%clk 0:02:47]}  Qe8 {[%clk 0:02:24]} 9. Re1 {[%clk 0:02:45]}  Ng4 {[%clk 0:02:11]} 10. Bg5 {[%clk 0:02:24]}  h6 {[%clk 0:02:11]} 11. Bh4 {[%clk 0:02:17]}  exd4 {[%clk 0:01:56]} 12. Nd5 {[%clk 0:02:11]}  g5 {[%clk 0:01:41]} 13. Bg3 {[%clk 0:02:07]}  c6 {[%clk 0:01:39]} 14. Bxd6 {[%clk 0:02:07]}  cxd5 {[%clk 0:01:33]} 15. exd5 {[%clk 0:02:08]}  Bd7 {[%clk 0:00:47]} 16. c5 {[%clk 0:02:02]}  Qc8 {[%clk 0:00:23]} 17. Rc1 {[%clk 0:01:57]}  Re8 {[%clk 0:00:18]} 18. h3 {[%clk 0:01:52]}  Nf6 {[%clk 0:00:13]} 19. c6 {[%clk 0:01:52]}  bxc6 {[%clk 0:00:10]} 20. dxc6 {[%clk 0:01:53]}  Bf5 {[%clk 0:00:10]} 21. Nxd4 {[%clk 0:01:52]}  Bg6 {[%clk 0:00:08]} 22. c7 {[%clk 0:01:47]}  Ne4 {[%clk 0:00:08]} 23. Bb5 {[%clk 0:01:43]}  Nxd6 {[%clk 0:00:06]} 24. Bxe8 {[%clk 0:01:34]}  Nxe8 {[%clk 0:00:07]} 25. Nb5 {[%clk 0:01:32]}  Naxc7 {[%clk 0:00:04]} 26. Rxe8+ {[%clk 0:01:30]}  Qxe8 {[%clk 0:00:02]} 27. Nxc7 {[%clk 0:01:30]}  Qc8 {[%clk 0:00:01]} 28. Nxa8 {[%clk 0:01:29]}  Qxa8 {[%clk 0:00:02]} 29. Qd7 {[%clk 0:01:29]}  Kh7 {[%clk 0:00:02]} 30. b3 {[%clk 0:01:28]}  Qe4 {[%clk 0:00:03]} 31. Qxa7 {[%clk 0:01:27]}  Bd4 {[%clk 0:00:03]} 32. Qc7 {[%clk 0:01:12]}  Qe2 {[%clk 0:00:02]} 33. Qg3 {[%clk 0:01:07]}  Be5 {[%clk 0:00:03]} 34. Qe3 {[%clk 0:01:05]}  Qb2 {[%clk 0:00:02]} 35. Rd1 {[%clk 0:01:01]}  Bf4 {[%clk 0:00:02]} 36. Qa7 {[%clk 0:01:01]}  Qc2 {[%clk 0:00:02]} 37. Re1 {[%clk 0:00:59]}  Qd2 {[%clk 0:00:02]} 38. Rf1 {[%clk 0:00:54]}  Qe2 {[%clk 0:00:02]} 39. g3 {[%clk 0:00:54]}  Be5 {[%clk 0:00:02]} 40. Qe7 {[%clk 0:00:53]}  Qf3 {[%clk 0:00:01]} 41. Re1 {[%clk 0:00:48]}  Be4 {[%clk 0:00:02]} 42. Rxe4 {[%clk 0:00:48]}  Qxe4 {[%clk 0:00:03]} 43. Qxf7+ {[%clk 0:00:48]}  Bg7 {[%clk 0:00:03]} 44. Qc4 {[%clk 0:00:47]}  Qe1+ {[%clk 0:00:03]} 45. Kg2 {[%clk 0:00:47]}  Qa1 {[%clk 0:00:03]} 46. Qc2+ {[%clk 0:00:47]}  Kh8 {[%clk 0:00:03]} 47. a4 {[%clk 0:00:46]}  Qe5 {[%clk 0:00:02]} 48. Qc4 {[%clk 0:00:46]}  Qd6 {[%clk 0:00:01]} 49. Qc8+ {[%clk 0:00:46]}  Kh7 {[%clk 0:00:01]} 50. Qb7 {[%clk 0:00:46]}  Qe5 {[%clk 0:00:01]} 51. b4 {[%clk 0:00:44]}  Qb2 {[%clk 0:00:02]} 52. Qe4+ {[%clk 0:00:43]}  Kh8 {[%clk 0:00:03]} 53. a5 {[%clk 0:00:41]}  Bd4 {[%clk 0:00:04]} 54. Qe8+ {[%clk 0:00:34]}  Kg7 {[%clk 0:00:03]} 55. Qe7+ {[%clk 0:00:34]}  Kh8 {[%clk 0:00:02]} 56. Qf8+ {[%clk 0:00:34]}  Kh7 {[%clk 0:00:03]} 57. a6 {[%clk 0:00:32]}  Qc2 {[%clk 0:00:01]} 58. Qf7+ {[%clk 0:00:26]}  Kh8 {[%clk 0:00:02]} 59. Qe8+ {[%clk 0:00:25]}  Kh7 {[%clk 0:00:02]} 60. Qd7+ {[%clk 0:00:25]}  Bg7 {[%clk 0:00:03]} 61. Qb7 {[%clk 0:00:25]}  Qa2 {[%clk 0:00:01]} 62. a7 {[%clk 0:00:24]} 1-0


[Site "https://www.chess.com"]